{"text_format":"3","workbook":"xlsx","n_sheets":9,"sheets":["DONNEES","Saisie charges","Spath Fluor","Alumine Hydratée","Alumine calcinée","Soufre","Anhydrite","AlF3","compte comptable"],"not_rendered":{"macros":1,"defined_names":9},"read":"whole","date_system":"1900"}

{"sheet":"DONNEES","index":0,"n_rows":1238,"n_cols":6,"rows_kept":1238,"merged":[[1,4,14,4],[1,5,14,5]]}
["prestations","COD_CPT","LIB_CPT","Type1","BUD SPATH","cpte spath"]
["Acconage","40100001","ENT KERRIT M'HAMED","Fluorure d'Aluminium","VOIR CODE VBA","VOIR CODE VBA"]
["Surv. Et Echantillonage","40100002","STEG GABES","Anhydrite"]
["Droit de Port et Gardiennage","40100003","SOTREGAMES","Spath Fluor"]
["Location Chariots, trax ou bène","40100004","STTAT","Alumine Hydratée"]
["Location Camion","40100005","ONAS","Alumine calcinée"]
["Mouvement Navire","40100006","SGS","Soufre"]
["Nettoyage Quai","40100007","HOTEL OASIS GABES"]
["Main d'œuvre extérieure","40100008","GES(XEROX)"]
["Tole ou planche pour arrimage","40100009","CIT (SSIT)"]
["Certificat d'origine","40100010","OMMP (Ex OPNT)"]
["Assistance & Formalités","40100011","GCT(GROUPE CHIMIQUE TUN)"]
[null,"40100012","SOGEM"]
[null,"40100013","BROSSETTE"]
[null,"40100014","LIBRAIRIE JEMAI ABDESSLE"]
[null,"40100015","KAMMOUN"]
[null,"40100016","SOMATEC"]
[null,"40100017","ERI(ENT REUSSITE INDUST)"]
[null,"40100018","SOGETRAM GABES"]
[null,"40100019","MFGT(ACMG)"]
[null,"40100020","HOTEL CHEMS"]
[null,"40100021","ETS NAHALI"]
[null,"40100022","AVIS AFRIC AUTO"]
[null,"40100023","BEN GUIZA COMPTOIR AUTO"]
[null,"40100024","KHALFALLI ABDESSALEM"]
[null,"40100025","ALI BEN MED ZIDI"]
[null,"40100026","COMPTOIR ELECTRIQUE"]
[null,"40100027","SOGIM"]
[null,"40100028","SECURAS"]
[null,"40100029","AGTL(A.GABES TRANSP.LEGE"]
[null,"40100030","MEDITERANEE TOURISME"]
[null,"40100031","MES"]
[null,"40100032","SCI"]
[null,"40100033","CMP"]
[null,"40100034","ELECTROMA GARAGE"]
[null,"40100035","TECHNI-COLD(ASKRI RACHID"]
[null,"40100036","MOHAMED HASSEN"]
[null,"40100037","AGENCE TECHNIQUE TRANSIT SERVICES"]
[null,"40100038","SUPERTOURS"]
[null,"40100039","K.DAMAK SHIPP.COMPANY"]
[null,"40100040","INTERNATIONAL TRANSIT"]
[null,"40100041","ENT TOUITI MAHMOUD"]
[null,"40100042","SDS(STE DISTRIB.SUD)"]
[null,"40100043","TRANSISUD"]
[null,"40100044","AMINE SOUI"]
[null,"40100045","STTS"]
[null,"40100046","CBM"]
[null,"40100047","COLLA STPC"]
[null,"40100048","SOGES"]
[null,"40100049","SOFAQ"]
[null,"40100050","SOFEM"]
[null,"40100051","GABES PLAST"]
[null,"40100052","DAR ESSALEM"]
[null,"40100053","TELECOM DJERBA"]
[null,"40100054","AGENCE ISUZU (SUD AUTO JAPON)"]
[null,"40100055","SESI(STE EQUIP.SCE INFOR"]
[null,"40100056","CBS(CHAARI BUREATIQUE SC"]
[null,"40100057","IBH(IMPRIM.BEN HAMIDA)"]
[null,"40100058","EFM(ENT FORGE MODERNE)"]
[null,"40100059","AGENCE MARITIME MOHAB"]
[null,"40100060","STE NOUR GABES"]
[null,"40100061","STE EQUIP.AUTOMOBILE(SEA"]
[null,"40100062","TELECTROMED"]
[null,"40100063","INFOLOG"]
[null,"40100064","STE TOUT POUR SOUDURE (TPS)"]
[null,"40100065","ATIG"]
[null,"40100066","MAHMOUD ALI ENTREPRENEUR"]
[null,"40100067","ENT ANIS SERVICES"]
[null,"40100068","GEODRILLetTECHNICS"]
[null,"40100069","MAINTENANCEetEQUIP.USINES"]
[null,"40100070","CABINET ABDALLAH REHOUMA"]
[null,"40100071","SERPIM"]
[null,"40100072","AZZABOU CHOKRI"]
[null,"40100073","SSP AMARRAGE"]
[null,"40100074","COMAR"]
[null,"40100075","STAR"]
[null,"40100076","REVOLON"]
[null,"40100077","ZAOUI MEUBLES"]
[null,"40100078","STE CHIMIQUE ALKIMIA"]
[null,"40100079","MOBIL"]
[null,"40100080","LCAE(LABO.CENTR.ANALYSE)"]
[null,"40100081","PUBLICITE REUNIE"]
[null,"40100082","HABIB HASSEN"]
[null,"40100083","SOMETRAC"]
[null,"40100084","AFI"]
[null,"40100085","CHAMBRE TUNISO-FRANCAISE"]
[null,"40100086","STEG TUNIS"]
[null,"40100087","TST(TUNIS.SEA TRANSP.COM"]
[null,"40100088","PTT"]
[null,"40100089","STTAT TRANSIT"]
[null,"40100090","SONEDE"]
[null,"40100091","SACMI"]
[null,"40100092","MED.SHIPP"]
[null,"40100093","ARTEL"]
[null,"40100094","TECI"]
[null,"40100095","POLYMATEC"]
[null,"40100096","TOFCO"]
[null,"40100097","SCHNEIDER"]
[null,"40100098","SECURITAS"]
[null,"40100099","CABINET GUELLATY"]
[null,"40100100","BARKALLAH HAMZA"]
[null,"40100101","HOTEL ABOUNAWAS"]
[null,"40100102","HERTZ"]
[null,"40100103","BSB"]
[null,"40100104","SOCOTU"]
[null,"40100105","LE RENOUVEAU"]
[null,"40100106","STMS"]
[null,"40100107","REST.DU GOLFE"]
[null,"40100108","CTN"]
[null,"40100109","TOUAREGS"]
[null,"40100110","CIREB (ETS CHAHMI)"]
[null,"40100111","ENT MAHMOUD BOURICHA"]
[null,"40100112","LA GAZETTE DU SUD"]
[null,"40100113","STPCM"]
[null,"40100114","JEUNE AFRIQUE S.A.P"]
[null,"40100115","EL HORRIA"]
[null,"40100116","ETS BOUDRANT"]
[null,"40100117","SOGEQ"]
[null,"40100118","SOTRADIES"]
[null,"40100119","SCRIPT"]
[null,"40100120","KHEMOUSSI KHENISSI"]
[null,"40100121","STE SOUDURE MODERNE"]
[null,"40100122","SOGEMBAL"]
[null,"40100123","LIB.MAHMOUD HAYDER"]
[null,"40100124","EAMGS(ETS AYAT)"]
[null,"40100125","AIR LIQUIDE (STOA)"]
[null,"40100126","AROUSSI OUANANE"]
[null,"40100127","EIM(EQUIP.INDUST.MINIER)"]
[null,"40100128","ASS.INT.SANTEetSECUR.TRAV"]
[null,"40100129","TAHAR KAHLOUL(SUD FLEXIB"]
[null,"40100130","MEUBLATEX"]
[null,"40100131","STE KETATA FRERES"]
[null,"40100132","STAFIM PEUGEOT"]
[null,"40100133","MED BEN RJEB"]
[null,"40100134","ENT MAZHOUDI BECHIR"]
[null,"40100135","TOUTA"]
[null,"40100136","HOTEL TACAPES"]
[null,"40100137","EBM"]
[null,"40100138","ETI"]
[null,"40100139","FEKILI YOUSSEF"]
[null,"40100140","ETS MONCEF KALEL"]
[null,"40100141","MAINTENANCE SERVICES M.S"]
[null,"40100142","SOGEGAT"]
[null,"40100143","COGEL FETHI BATITA"]
[null,"40100144","PHARM.DAHMANI NOUREDDINE"]
[null,"40100145","ABDELKRIM B.MOKHTAR AMAR"]
[null,"40100146","SNOUSSI SADOK"]
[null,"40100147","CALEB BRETT"]
[null,"40100148","SOMETRI"]
[null,"40100149","SORETOL"]
[null,"40100150","SES"]
[null,"40100151","SIG GABES"]
[null,"40100152","CARRELAGES HEDI GHRISS"]
[null,"40100153","SCIN"]
[null,"40100154","SGTI"]
[null,"40100155","SOGACEP"]
[null,"40100156","GABES INDUSTRIE"]
[null,"40100157","ELECTRICITE MT/BT"]
[null,"40100158","JAWALI et GAZEL"]
[null,"40100159","SOTETEL"]
[null,"40100160","TRAMCA (STMCB)"]
[null,"40100161","BAJI CHATTAOUI"]
[null,"40100162","HAMIDA SOUAI"]
[null,"40100163","SUD METAL"]
[null,"40100164","ELECTRICITE BOUKHROUF"]
[null,"40100165","AMADER"]
[null,"40100166","STE ARABES DE SCES S.A.S"]
[null,"40100167","TUNISIE ELECTRONIQUE"]
[null,"40100168","EMSG"]
[null,"40100169","SORECOP"]
[null,"40100170","REST.DAR EL JELD"]
[null,"40100171","EGETRI"]
[null,"40100172","STE AMARA D'ENTRETIEN"]
[null,"40100173","REST.DE L'OASIS"]
[null,"40100174","OASIS TECHNICAL CORPORATION"]
[null,"40100175","GENERAL EQUIPEMENT"]
[null,"40100176","COMAR TUNIS"]
[null,"40100177","CPM(COMPL.PLAST.MEZZOUNA"]
[null,"40100178","SOTUMAGASED"]
[null,"40100179","SAAMRA"]
[null,"40100180","SOTUMA"]
[null,"40100181","ENT MESSAOUDI"]
[null,"40100182","TMST"]
[null,"40100183","STE TUNIS.ACCONAGE MANUT"]
[null,"40100184","ABED MECANIQUE GLE(AMG)"]
[null,"40100185","COMPTOIR NLE PLASTIQUE"]
[null,"40100186","LA COURONNE"]
[null,"40100187","SOMAR"]
[null,"40100188","SAMDEP"]
[null,"40100189","SEEMIM"]
[null,"40100190","PROLOGIC"]
[null,"40100191","BUDGET"]
[null,"40100192","ZIDI BELGACEM"]
[null,"40100193","ZIDI HOUCINE"]
[null,"40100194","SOGHATRAP"]
[null,"40100195","MATAFI"]
[null,"40100196","STE MAGASIN GENERAL"]
[null,"40100198","ETS SALAH GUEFRACH"]
[null,"40100199","SOGEPRO"]
[null,"40100200","SKANES MEUBLES"]
[null,"40100201","STOMO"]
[null,"40100202","CIT MT"]
[null,"40100203","CMR"]
[null,"40100204","STE LES DEUX CHAINES"]
[null,"40100205","ESAB"]
[null,"40100206","SIMFER"]
[null,"40100207","KHERIJI HABIB BEN FITOUR"]
[null,"40100208","HOTEL LES MIMOSAS"]
[null,"40100209","ETS KETATA AHMED"]
[null,"40100210","MICHELIN"]
[null,"40100211","ABDELAZIZ DEGANI"]
[null,"40100212","SEPST"]
[null,"40100213","SOFTWARE PRODUCT.GROUP"]
[null,"40100214","PHARM.LOUHICHI MED FAYCA"]
[null,"40100215","VALENTINE"]
[null,"40100216","SOGETRAS"]
[null,"40100217","LIBRAIRIE NEFOUSSI"]
[null,"40100218","STE NEJMET ELBAHR"]
[null,"40100219","STE AMOUS & CIE"]
[null,"40100220","SORIP"]
[null,"40100221","STE SERVICE BUREAU"]
[null,"40100222","STE SELLAMI SERVICES"]
[null,"40100223","BATAM"]
[null,"40100224","OK RESTAURANTS"]
[null,"40100225","ALCATEL"]
[null,"40100226","ETS ABDENNEBI"]
[null,"40100227","SOMAM"]
[null,"40100228","COGEF"]
[null,"40100229","HBH BUSINESS SYSTEMS"]
[null,"40100230","PROMOCHIMIE INDUSTRIE"]
[null,"40100231","SERINCOM SARL"]
[null,"40100232","AUTOMATISME & REGULATION"]
[null,"40100233","ABDELAZIZ BOURICHA"]
[null,"40100234","ENT LASSOUED PEINTURE"]
[null,"40100235","CODIMA"]
[null,"40100236","SOCIETE TUNISIENNE COMPTO"]
[null,"40100237","LA CENTRIFUGATION INDUST"]
[null,"40100238","ELECTRO CONDUCTEUR"]
[null,"40100239","HASSEN DACHRAOUI"]
[null,"40100240","DELTA INSTRUMENTATION"]
[null,"40100241","HOTEL LES AMBASSADEURS"]
[null,"40100242","FATHI BOUATTOUR(BF)XEROX"]
[null,"40100243","GENERAL SERVICE GABES (GSG)"]
[null,"40100244","HOTEL IBN KHALDOUN"]
[null,"40100245","SAMI B ABDELMAJID KRAIEM"]
[null,"40100246","SIKA TUNISIENNE"]
[null,"40100247","HBC(HERITIERS B.SALEM CH"]
[null,"40100248","PHARM.BEN YAHMED KAMEL"]
[null,"40100249","EL AMRI AMMAR"]
[null,"40100250","VIBRATECH"]
[null,"40100251","SID(STE INDUST.DIFFUSION"]
[null,"40100252","MOHAMED MAHMOUD(ING.GEOM"]
[null,"40100253","TAHAR FETOUI"]
[null,"40100254","ETS DORGHAM(FROIDetCLIMAT"]
[null,"40100255","RIMAR"]
[null,"40100256","SETT(STE ENTRETIEN TUBAG"]
[null,"40100257","TET (TUNISIE ELEC.TECHN)"]
[null,"40100258","TRANSCO"]
[null,"40100259","GENMAR TUNIS"]
[null,"40100260","ASKRI MOHSEN"]
[null,"40100261","SAYBOLT TUNISIE"]
[null,"40100262","ATM(ASSISTANCE TECHNIQUEetMAINT)"]
[null,"40100263","ENT AJEM ABDELLATIF"]
[null,"40100264","STE PHENIX SERVICES"]
[null,"40100265","POLYCLIN.IBN ANNAFIS"]
[null,"40100266","STE AMEL"]
[null,"40100267","SAMED GARGOURIetFILS"]
[null,"40100268","STATION ESSO"]
[null,"40100269","STE ARABE D'ISOLATION"]
[null,"40100270","ETS NAJAR"]
[null,"40100271","ROYALE SERVICES(RS)"]
[null,"40100272","PROMOSCIENCES"]
[null,"40100273","COMETE ENGINERING"]
[null,"40100274","MUSTAPHA TELMOUDI"]
[null,"40100275","GAM COUPE"]
[null,"40100276","SOTUCA"]
[null,"40100277","CGB SUD"]
[null,"40100278","BEIST SERVICES"]
[null,"40100279","APROQUEM"]
[null,"40100280","CNI(CENTRE NAT.DE L'NFOR"]
[null,"40100281","ART et DECORATION"]
[null,"40100282","SNTRI"]
[null,"40100283","STE FOIRE INTERNAT.GABES"]
[null,"40100284","DAUPHIN"]
[null,"40100285","HOTEL ANIS"]
[null,"40100286","HOTEL DAR JERBA"]
[null,"40100287","VENETA SYSTEM GABES"]
[null,"40100288","MEUBLACIER TUNISIE"]
[null,"40100289","STE CIMENTS DE GABES"]
[null,"40100290","STANDARD SHARING SOFTWAR"]
[null,"40100291","FRUCTIDOR"]
[null,"40100292","STOC'S"]
[null,"40100293","SOCOS"]
[null,"40100294","STE GENERAL AUTOS"]
[null,"40100295","IDERYET"]
[null,"40100296","STE DU DJEBEL DJERISSA"]
[null,"40100297","MANUFACTURE TUNIS.RESSOR"]
[null,"40100298","SOMETRAG"]
[null,"40100299","BTAF (MOHAMED MAHMOUD)"]
[null,"40100300","NASFI SALLAMI"]
[null,"40100301","ARFA"]
[null,"40100302"," STS  (ex : SOTICEM)"]
[null,"40100303","SINTEC"]
[null,"40100304","MOURAD SPORT"]
[null,"40100305","MAITRE MONCEF AYACHI"]
[null,"40100306","ORANGE TUNISIE INTERNET"]
[null,"40100307","STE ESPOIR BUREAUX(ESB)"]
[null,"40100308","OPTIMA"]
[null,"40100309","ETS ROMDHANE ABOUL ELOUL"]
[null,"40100310","ABDELHAMID YACOUBI"]
[null,"40100311","GMG(GROUP.MAINTetGESTION)"]
[null,"40100312","STE TRANSPORT COMBINE"]
[null,"40100313","STE AFRIQUE AUTOS"]
[null,"40100314","ENT ALI MEZHOUDI"]
[null,"40100315","STE OUERTANI TRANS.MARCH"]
[null,"40100316","MEZHOUDI FETHI"]
[null,"40100317","SOMAC"]
[null,"40100318","LE CALIGRAPHE MISSADI FE"]
[null,"40100319","PHARM.CENTRALE DE TUNISI"]
[null,"40100320","UTAIM"]
[null,"40100321","FONDERIE CHELLY"]
[null,"40100322","L'EQUIPEMENT MODERNE"]
[null,"40100323","CET TUNISIE(CIE D'EMBAL"]
[null,"40100324","TECHNO-BUREAUTIQUE SERVI"]
[null,"40100325","BELGHAIEB SPORT"]
[null,"40100326","BESSADOK ANOIR"]
[null,"40100327","AFRICA SERVICES"]
[null,"40100328","AMARA MANSOUR ARCHITECTE"]
[null,"40100329","SIBAC"]
[null,"40100330","IMPRIMERIE EL MANARA"]
[null,"40100331","ATELIER SOUDURE HERICHI"]
[null,"40100332","MOHAMED KHROUF"]
[null,"40100333","SOGAL"]
[null,"40100334","GAMMA INFORMATIQUE"]
[null,"40100335","IDEE"]
[null,"40100336","LE METAL S.A."]
[null,"40100337","SIPPRA"]
[null,"40100338","MEM STE MAINT . ELECT&MECA"]
[null,"40100339","CABLERIE CHAKIRA"]
[null,"40100340","MEDIA DIFFUSION"]
[null,"40100341","IDEAL BUREAU"]
[null,"40100343","GFT(GENE.FRIGORIFIQUE T"]
[null,"40100344","NIZAR GAZBAR"]
[null,"40100345","SCORES"]
[null,"40100346","RESIDENCE CLUB RAMSES"]
[null,"40100347","OPCIE"]
[null,"40100348","AYADI TRAVAUX ELECTRIC"]
[null,"40100349","FET-BAC"]
[null,"40100350","HIGHTECH SQL"]
[null,"40100351","TTA ELECTRONIQUE"]
[null,"40100352","EXACT INFORMATIQUE"]
[null,"40100353","GRAND MAGASIN IZDIHAR"]
[null,"40100354","ASSAINISSEMENT JERBI"]
[null,"40100355","COGEF PLUS (Ex SUD COLD)"]
[null,"40100356","RAYONNAGE NAJAH"]
[null,"40100357","TESEAL"]
[null,"40100358","HCC"]
[null,"40100359","GIMAF"]
[null,"40100360","SOSEPRO"]
[null,"40100361","CONFORT ENNAKHIL"]
[null,"40100362","MACUNIVERS"]
[null,"40100363","BECHIR BEN NJIMA"]
[null,"40100364","EZZEDINE SADOK REHOUMA"]
[null,"40100365","CHAMBRE COMMERCE&INDUSTR"]
[null,"40100366","ANISSA MANAI DACHRAOUI"]
[null,"40100367","ARC ASSUR.RECOURS CONSEI"]
[null,"40100368","ORIENTAL TAPIS"]
[null,"40100369","ETINSEL"]
[null,"40100370","ZARRAD TELECOM SERVICES"]
[null,"40100371","CRC ENT TRAV.PUBL&BATIM"]
[null,"40100372","LES CARRIERES DU SUD"]
[null,"40100373","FAZE ELECTROTECHNIQUE"]
[null,"40100374","SODIP"]
[null,"40100375","ENT RIDHA GHRIBI TR.PUB"]
[null,"40100376","TRIKI ABDELWAHAB"]
[null,"40100377","SITPA"]
[null,"40100378","ISST INSTITUT DE SANTE T"]
[null,"40100379","IRAM"]
[null,"40100380","EL BOUAZIZ JAMEL (EBJ)"]
[null,"40100381","ESM (ENT BEN SALAH MAINT)"]
[null,"40100382","IBM Tunisie (Ext.TBM)"]
[null,"40100383","SMP(STE MODERNE PRESTATION)"]
[null,"40100384","RETELEC"]
[null,"40100385","LBS SERVICE BUREAUTIQUE"]
[null,"40100386","HAMDI SERVICES"]
[null,"40100387","ASTER INFORMATIQUE"]
[null,"40100388","CMO CONSULTANTS"]
[null,"40100389","SUPERTEST INTER.S.A"]
[null,"40100390","MOHAMED TURKI"]
[null,"40100391","UNITEC"]
[null,"40100392","THE PROTECTRESS"]
[null,"40100393","TUNISIAN MARKET.SCE(TMS)"]
[null,"40100394","STIME"]
[null,"40100395","SBF"]
[null,"40100396","MOHAMED NACEUR SCE"]
[null,"40100397","TEMICAD"]
[null,"40100398","BLUE REFLEX"]
[null,"40100399","GTSP"]
[null,"40100400","ATCM"]
[null,"40100401","STE D'EQUIP.THERMIQUES I"]
[null,"40100402","STE BESTOPLAST TUNISIE"]
[null,"40100403","SMM STE SERVICES MEC.MET"]
[null,"40100404","MAPEC"]
[null,"40100405","DIFFUSION INFORMATIQUE"]
[null,"40100406","ALPHA BUREAU"]
[null,"40100407","SOCOPEC"]
[null,"40100408","PLUS FORMATION"]
[null,"40100409","PROTECTION CIVILE"]
[null,"40100410","ALI BEN MAHMOUD BEN SALEM"]
[null,"40100411","STS(STE TRAV&SERVICES)"]
[null,"40100412","HEDI BEN AYED"]
[null,"40100413","INNORPI"]
[null,"40100414","LIB.CLAIREFONTAINE"]
[null,"40100415","SUP-PALETTE"]
[null,"40100416","STIR"]
[null,"40100417","HOTEL HILTON"]
[null,"40100418","ELECTRO BERRAJAH"]
[null,"40100419","SOTRAPOC"]
[null,"40100420","TOP SERVICES"]
[null,"40100421","FAOUZI BATITA"]
[null,"40100422","GRAPHITECH"]
[null,"40100423","MBM"]
[null,"40100424","ETS 3S"]
[null,"40100425","SOMEG"]
[null,"40100426","DAR ELFALLAH"]
[null,"40100427","EZZAHIA"]
[null,"40100428","MARZOUGUI"]
[null,"40100429","HP AUTOMATISME"]
[null,"40100430","SERVICE RAYONNAGE"]
[null,"40100431","LABO CHINE"]
[null,"40100432","GAIN"]
[null,"40100433","CENTRE TECHNIQUE CHIMIE"]
[null,"40100434","CENTRE MEDITERRANEEN DE MANAGEMENT"]
[null,"40100435","SUD SPORT GABES"]
[null,"40100436","PIVA GABES"]
[null,"40100437","STATION TOTAL"]
[null,"40100438","GUEBEBIA MOKHTAR"]
[null,"40100439","STE EL MANAR"]
[null,"40100440","ENT EL EZZI D'ELECTRICITE"]
[null,"40100441","DELTA CONTROLE INTERNATIONAL"]
[null,"40100442","WISSEM MATERIAUX DE CONSTRUCTION"]
[null,"40100443","DB VIB CONSULTING"]
[null,"40100444","SOGEME"]
[null,"40100445","INTERIOR DESIGN"]
[null,"40100446","MAGHREB TRANSMISSIONS"]
[null,"40100447","AFRIVISION"]
[null,"40100448","BMAI"]
[null,"40100449","TOP-DECOR"]
[null,"40100450","RONDAU S.A."]
[null,"40100451","ETS. LOUIS MONTENAY"]
[null,"40100452","SOCOPRA"]
[null,"40100453","DISTRIMAT INFORMATIQUE"]
[null,"40100454","SOTEL-SUD"]
[null,"40100455","MEUBLENTUB"]
[null,"40100456","KHLIFI BELGACEM"]
[null,"40100457","SOPROCA"]
[null,"40100458","DARDOURI TAOUFIk"]
[null,"40100459","ESSO"]
[null,"40100460","SUD ALUMINIUM SALU"]
[null,"40100461","MIDASSI FATHI"]
[null,"40100462","MEUBLES MEZGHANI"]
[null,"40100463","DATA BOX"]
[null,"40100464","BM EQUIPEMENTS"]
[null,"40100465","SOCOMEL"]
[null,"40100466","ABDELMAJID MANYAOUI"]
[null,"40100467","ENT HEDI BEN MAHMOUD"]
[null,"40100468","EL IZDIHAR FILLAHI"]
[null,"40100469","CHOBBIT BECHIR"]
[null,"40100470","GAM(GENERAL APPLICATIONS MECANIQUES)"]
[null,"40100471","ALI MAHMOUD SALEM"]
[null,"40100472","ATELIER GAIASSE MAROQUINERIE"]
[null,"40100473","CO.RE.BOIS&MATERIAUX"]
[null,"40100474","ABDERRAZAK REHOUMA"]
[null,"40100475","GHANDRI MABROUK"]
[null,"40100476","ANIS RENT A CAR"]
[null,"40100477","AGENCE GENERALE TELECOMMUNICATION (AGT)"]
[null,"40100478","ENT BOUTTERAA"]
[null,"40100479","ELECTRIQUE CONFORT"]
[null,"40100480","LAMJED DJEMAI"]
[null,"40100481","STATION SHELL"]
[null,"40100482","SIPA"]
[null,"40100483","BRI (BEN RHOUMA INDUSTRIES)"]
[null,"40100484","SONIMA"]
[null,"40100485","ADENIG"]
[null,"40100486","CHKIOUA & THABTI"]
[null,"40100487","BECHIR BEN AHMED"]
[null,"40100488","ELECTRICITE DE L'AVENIR"]
[null,"40100489","PAF (STE TRANSFORM.METAUX)"]
[null,"40100490","ADEM"]
[null,"40100491","MODERNE CONFECTION (BARCOUS)"]
[null,"40100492","ENT KANOUN NABIL"]
[null,"40100493","ENT CHAMAM ABDELKADER"]
[null,"40100494","COMPLEXE TOURISTIQUE SIDI SALEM"]
[null,"40100495","ORGANISATION TUNIS.EDUCATION&FAMILLE(ISET)"]
[null,"40100496","ENT KHERIJI ET COMPAGNIE"]
[null,"40100497","INSTITUT JAWDA"]
[null,"40100498","CETIME"]
[null,"40100499","HOTEL REGINA"]
[null,"40100500","CFC ENGINNIRING"]
[null,"40100501","SPEIA (STE PROMOTION)"]
[null,"40100502","ORADIST"]
[null,"40100503","ONET (BUREAU REG.GABES)"]
[null,"40100504","EASY TOUR"]
[null,"40100505","HECHMI HASNAOUI"]
[null,"40100506","TUNISIE GAZ INDUSTRIELLES"]
[null,"40100507","FILTRATION TISSU TECH.&TOILES(F4T)"]
[null,"40100508","EXPERT INFORMATIQUE"]
[null,"40100509","JABRI MOUNIR"]
[null,"40100510","THABTI POUR SOUDURE&PROTECTION"]
[null,"40100511","MAINTENANCE MOTEUR MARIN&IND.(3MI)"]
[null,"40100512","STE MATELAS TAKAPES"]
[null,"40100513","RESSORT MOHAMED BEN AISSA"]
[null,"40100514","HATEM BETTOUHAMI"]
[null,"40100515","SOLSER(STE LOCATION ET SERVICES)"]
[null,"40100516","BETA(BUREAU D'ETUDES TECHN.APPROFONDIES)"]
[null,"40100517","MAGASIN NEJIB MAROUANE BOUTTAIEB"]
[null,"40100518","CABINET HORIZONS FORMATION"]
[null,"40100519","HOTEL ELOUMARA"]
[null,"40100520","METROCAL"]
[null,"40100521","BRAIN INFORMATIQUE TUNIS"]
[null,"40100522","STE ZIDI DE CARRIERES"]
[null,"40100523","MG MAXI (EX:PROMOGRO)"]
[null,"40100524","LES BIENS D'EQUIP.HOTELIERS(BEH)"]
[null,"40100525","HESTYA TUNISIE"]
[null,"40100526","INFO-CIEL"]
[null,"40100527","TUNISIE TELECOM"]
[null,"40100528","Maghreb Electro Technique Automatisme (META)"]
[null,"40100529","STE TUNISIENNE DE CHAUX"]
[null,"40100530","S.S.Mobile"]
[null,"40100531","HAMROUNI SOUDURE PLASTIQUE"]
[null,"40100532","SUD FREINS"]
[null,"40100533","SELLAMI HAMOUDA"]
[null,"40100534","KSIBI SCE INTERNATIONAL"]
[null,"40100535","VAN ROSSEM DECO"]
[null,"40100536","CENTRE INTER.TECHNOL.ENVIR.TUNIS"]
[null,"40100537","SOCIETE L'ART DE CONSTRUCTION METALLIQUE"]
[null,"40100538","SOCIETE ZARZIS TRANSPORT"]
[null,"40100539","INSPECTORATE-TUNISIE"]
[null,"40100540","MOHAMED BEN ABDELAZIZ AYACHI"]
[null,"40100541","LES GRANDS ATELIERS DU NORD (Depart STIBOIS)"]
[null,"40100542","BESSADOK AKRAM"]
[null,"40100543","HASDRUBAL THALASSA HOTELS"]
[null,"40100544","CHAMPIONS CONSULTING"]
[null,"40100545","S C SUPERVISE S.A"]
[null,"40100546","Med BIDANI ET FILS"]
[null,"40100547","Ets Najar Chabane"]
[null,"40100548","AMC ERNST AND YOUNG"]
[null,"40100549","STE ARTS ET IMPRESSIONS"]
[null,"40100552","SMIG (Sté Maint Ind Gle)"]
[null,"40100553","FORASOL"]
[null,"40100554","Residence Ain Mariem"]
[null,"40100555","Hotel Corniche Palace Bizetre"]
[null,"40100556","Sté Tunisienne de Flexible"]
[null,"40100557","SOMAFI"]
[null,"40100558","Sté METAFLUX"]
[null,"40100559","SIMG"]
[null,"40100560","P H P E"]
[null,"40100561","CHAUSSURES SGAIER \"Mondher GNOUNOU\""]
[null,"40100562","RIDHA BOUKHRIS \"tout jolie\""]
[null,"40100563","STE ARMES \"EX-MAGASIN PRESTIGE\""]
[null,"40100564","Sté Commerciale d'Habillement"]
[null,"40100565","GLOBAL ACIER"]
[null,"40100566","M'HEMMED NASFI"]
[null,"40100568","TECHNIQUE MARKETING SERVICE"]
[null,"40100569","G.P.A VALANTINE"]
[null,"40100570","SOTRAS"]
[null,"40100571","SACEM"]
[null,"40100572","MAHMOUD HMAIED ARCHITECTE"]
[null,"40100573","Bureau VERITAS"]
[null,"40100574","BOUKHCHINA LASSAD"]
[null,"40100575","BEN GAÎED MONCEF"]
[null,"40100576","CREATION FATEN"]
[null,"40100577","ENVIRONMENT ASSESSMENT&MANAGMENT"]
[null,"40100578","GHEDAMSI TRAVEAUX SCES"]
[null,"40100579","FLUOBAR"]
[null,"40100580","ABDESLEM MANSOUR"]
[null,"40100581","SOTRIBAT"]
[null,"40100582","GNAOUI RAJAH"]
[null,"40100583","MATEC"]
[null,"40100584","GTE (LA GENERALE DES TRAVAUX D'ENTREPRISE)"]
[null,"40100585","STUDIO CARTHAGE"]
[null,"40100586","BSB TOYOTA"]
[null,"40100587","BEN SALEM MOTORS"]
[null,"40100588","SETE"]
[null,"40100589","LABO.PHOTO.HAYDER"]
[null,"40100590","TCC"]
[null,"40100591","CARBONE TUNISIE"]
[null,"40100592","NEW HORIZONS"]
[null,"40100593","ISMAYL MANSOUR"]
[null,"40100594","STE GABESIENNE DE FER"]
[null,"40100595","MAITRE BOU JEMAA TAIEB"]
[null,"40100596","STE NOUVELLE ELECTRIQUE SOMETEL"]
[null,"40100597","ETS TUNISIENNE D'ELECTRICITE"]
[null,"40100598","STE AMEN DE COMMERCE"]
[null,"40100599","COMPTOIR INDUSTRIEL DU SUD"]
[null,"40100600","BEN GUIZA Abdelhamid"]
[null,"40100601","MATHLOUTHI ALI"]
[null,"40100602","STE CARRIERE DU CALCAIRE"]
[null,"40100603","STE DE CARRIERES DE PIERRES"]
[null,"40100604","STE DE FORMATION ET DE RECYCLAGE"]
[null,"40100605","Industrie Maghrebine Aluminum"]
[null,"40100606","EHSO"]
[null,"40100607","STAS (SFAX)"]
[null,"40100608","REALITES"]
[null,"40100609","ETS ALI ALOULOU"]
[null,"40100610","L'UNIVERS BUREAUTIQUE"]
[null,"40100611","MOHAMED AYACHI"]
[null,"40100612","AETECH ALCATEL"]
[null,"40100613","JHAYDER MONIR (CONFORT PALACE)"]
[null,"40100614","HOTEL OMRANE"]
[null,"40100615","MED BEN MED BOUATTOUR"]
[null,"40100616","CONFORT PALACE"]
[null,"40100617","OPEN TOUR"]
[null,"40100618","SOFAT"]
[null,"40100619","ESPACE FORMATION"]
[null,"40100620","TMCS"]
[null,"40100621","BAS PRIX (BELGHAIEB ADEL)"]
[null,"40100622","NETCOM"]
[null,"40100623","BOUTIQUE LAMINE"]
[null,"40100624","Magasin BOULBABA"]
[null,"40100625","TRABELSI SADOK"]
[null,"40100626","PARENIN"]
[null,"40100627","SSBT"]
[null,"40100628","HYDCO"]
[null,"40100629","Association Gle Insuffisants Moteurs (AGIM)"]
[null,"40100630","SEPCA"]
[null,"40100631","DHAFER CHAMAM"]
[null,"40100632","SMART CONSULT"]
[null,"40100633","Agence Nationale des Fréquences"]
[null,"40100634","BMK CONSULTING"]
[null,"40100635","TECHNOLOGIA FORMATION ET CONSEIL"]
[null,"40100636","MAITRE Faycel Jedidi"]
[null,"40100637","SMART FINANCE"]
[null,"40100638","Univers Elec"]
[null,"40100639","Etablissement HADJI (Service Industriel)"]
[null,"40100640","MATISSE"]
[null,"40100641","HEDI CHOUKI"]
[null,"40100642","SOGENAS"]
[null,"40100643","ZORGUI Med Monçef"]
[null,"40100645","KRAIEM MONGI"]
[null,"40100646","ZENITH COMPETENCES"]
[null,"40100647","ARROBAS"]
[null,"40100648","Prévention Plus"]
[null,"40100649","KEBAIER Service Bureautique"]
[null,"40100650","HAPPY RENT"]
[null,"40100651","BARKA"]
[null,"40100652","Sté Gardiennage Assainissement des Ets (SGAE)"]
[null,"40100653","IMP.OFF. REP. TUNISIENNE (I.O.R.T)"]
[null,"40100654","M2A INGENIERIE"]
[null,"40100655","Meskini Brahim"]
[null,"40100656","CLIMED"]
[null,"40100657","Sté CHAGRA COUPE"]
[null,"40100658","EL MAWASSIR"]
[null,"40100659","RACHID AMARA"]
[null,"40100660","AMOURRI WALID"]
[null,"40100661","Ets BEL HADJ MOHAMED"]
[null,"40100662","SOCIETE DE SERVICE GENERAL (SSG)"]
[null,"40100663","COTUSAL"]
[null,"40100664","ALUM-TEC"]
[null,"40100665","AUTOMATISME-GESTION ELECTRIQUE-TELECOMMUNICATION"]
[null,"40100666","METAL INDUSTRY"]
[null,"40100667","L'ANGE GARDIEN"]
[null,"40100668","SOCIETE TACAPES"]
[null,"40100669","INTERCHIMIE"]
[null,"40100670","CHIMITECH"]
[null,"40100671","JABER MONGI"]
[null,"40100672","PILOTAGE CORDINATION DES TRAVAUX (PCT)"]
[null,"40100673","VIP CAR"]
[null,"40100674","ELECTROSTAR"]
[null,"40100675","STE COMMERCIALE HEDI ABDELKARIM"]
[null,"40100676","RICOM"]
[null,"40100677","Golfe  de Commerce"]
[null,"40100678","HYDRO SERVICES"]
[null,"40100679","CHAUSSURES MOULDI ZAYANI"]
[null,"40100680","SCE BATIMENT & INF (FERCI WISSEM)"]
[null,"40100681","BOURICHA Kamel"]
[null,"40100682","BOUABDELLAH SERVICES"]
[null,"40100683","SOCIETE DE FABRICATION DE POUDRE"]
[null,"40100684","HYDRO EXPERT INTERNATIONAL"]
[null,"40100685","SOCIETE D'ENTRETIEN&SERVICES"]
[null,"40100686","TUNISIE TRADENET"]
[null,"40100687","TECHNO-TEL"]
[null,"40100688","CENTRE SECT. FORM. MAINT GABES (CSFM)"]
[null,"40100689","CENTRE NATIONAL DE RADIO-PROTECTION"]
[null,"40100690","SEMOS"]
[null,"40100691","Maître Fayçal EZZAR"]
[null,"40100692","CABINET D'EXPERTISE & CONSEIL HICHEM SAIED"]
[null,"40100693","GENIE CHIMIQUE ETUDE & REALISATION"]
[null,"40100694","LES MATERIAUX MICRONISES DE TUNISIE"]
[null,"40100695","WATEC"]
[null,"40100696","OFFICE NATIONAL DES MINES"]
[null,"40100697","SAMIR BEJI"]
[null,"40100698","SOTUMAGES"]
[null,"40100699","STE QUINCAILLERIE NAHALI FRERES"]
[null,"40100700","MEZHOUDI Abdellah"]
[null,"40100701","COMPTOIR GENERAL DE COMMERCE"]
[null,"40100702","GROUPEMENT DES MANUT.DE GABES (GMGA)"]
[null,"40100703","SOCIETE MULTI-SERVICE \"EMNA\""]
[null,"40100704","UGTT : FEDERATION GLE PETRO-CHIMIE"]
[null,"40100705","NAOUFEL GUEFRACH SERVICES (NGS)"]
[null,"40100706","PHARMACIE HOUCINE IBRAHIM"]
[null,"40100707","ELECTRONIC SYSTEMS"]
[null,"40100708","G.S.M. SERVICES"]
[null,"40100709","ECO-PROCESS"]
[null,"40100710","NASFI ABDELAZIZ -SPORT 11-"]
[null,"40100711","FAKHREDDINNE ZRIG"]
[null,"40100712","MOHAMED EL ARBI KAROUF"]
[null,"40100713","MONDIAL D'EQUIPEMENT DE MATERIEL ALIMENTAIRES"]
[null,"40100714","STE BESSEGHAIER ET WEDERNI AUTOMOBILE JAPONAISE"]
[null,"40100715","TOUT BUREAU"]
[null,"40100716","TURBO TUNISIE"]
[null,"40100717","SGHAIER SHOES (HASSEN GNOUNOU)"]
[null,"40100718","ULYSSE SPARE PARTS"]
[null,"40100719","NOUVEAUTES DE LA FORMATION"]
[null,"40100720","STHB"]
[null,"40100721","AFRIMAR GABES"]
[null,"40100722","SFAXIENNE INDUSTRIELLE AUTOMOBILE"]
[null,"40100723","MANIENANCE ASSIST MIEL MEDICAL INFO (MAMI)"]
[null,"40100724","SERVICES INFORMATIQUES ET TECHNIQUES (SIT)"]
[null,"40100725","ENVIROPROTECS"]
[null,"40100726","HOTEL IMPERIAL MARHABA"]
[null,"40100727","ABDELHAMID BEN SALEM (MODE  D'AUJORD'HUI)"]
[null,"40100728","TAOUFIK AMARA"]
[null,"40100729","RESTAURANT CAFE IN"]
[null,"40100730","OMRANI MAINTENANCE & SERVICES"]
[null,"40100731","MNASRIA AMARRAGE. DEM. NAVIRES"]
[null,"40100732","PIECES IND. MATERIEL AGRICOLE (PIMA)"]
[null,"40100733","ETS MBARKA HABIB"]
[null,"40100734","STIMM - LA BALANCE"]
[null,"40100735","TUNISIE INSTRUMENTATION"]
[null,"40100736","STE GENERALE PNEUMATIQUES CAOUTCHOUC"]
[null,"40100737","FETHI GOUADRIA"]
[null,"40100738","STE MEHIRI DEDOUANEMENT & SCE"]
[null,"40100739","ETS MOHEDDINE OUANANE"]
[null,"40100740","STE AMIBOIS"]
[null,"40100741","COGEM PLUS ASCENSEUR"]
[null,"40100742","GLE PREVENTION PROTECTION SECURITE"]
[null,"40100743","MOEZ BEN GHALBA"]
[null,"40100744","LAV TOUT NET"]
[null,"40100745","SLAHEDDINE OUANANE"]
[null,"40100746","MED BEN AMEUR KHEMIRI"]
[null,"40100747","OTHMAN BEN ROMDHANE"]
[null,"40100748","HEDI BELHAJ(STATION DIESEL SUD)"]
[null,"40100749","ETS GHARBI S.A"]
[null,"40100750","AGENCE EL KHADRA PUB"]
[null,"40100751","CONSEIL DU MARCHE FINANCIER"]
[null,"40100752","STE NLE DISTRIBUTION PETROLE (AGIL)"]
[null,"40100753","PTT 21-21"]
[null,"40100754","TUNISIE MICRO INFORMATIQUE (TMI)"]
[null,"40100755","MABROUKA HASSEN/ELECTRIQUE"]
[null,"40100756","OUTIMAK"]
[null,"40100757","UNILEC"]
[null,"40100758","SOCIETE SERVICES DES BATIMENTS INTELLIGENTS"]
[null,"40100759","BRASSERIE SCHILLING"]
[null,"40100760","STE MODERNE EQUIP. THERMIQUE (SOMETH)"]
[null,"40100761","SOCIETE GENERALE DU FLEXIBLE"]
[null,"40100762","STE INGENIERIE ORG.FINAN&IND (SINORFI)"]
[null,"40100763","OIMIA (IHEB MAHMOUD)"]
[null,"40100764","SCE INFORMATIQUE&INGENIERIE (GUETITI ANOUAR)"]
[null,"40100765","SAHBI ZRIG( CONFORT)"]
[null,"40100766","LA PROMOTION DE L'IMAGE"]
[null,"40100767","CHOKRI MALLEK"]
[null,"40100768","ETS CHABANE/RENAULT"]
[null,"40100769","EVOL PROD.CHAUSSURES .SECURITE"]
[null,"40100770","SOGECAP"]
[null,"40100771","EXPERTS-CONSEILS-SERVICES"]
[null,"40100772","MANAGEMENT ET FORMATION"]
[null,"40100773","FUN TRAVEL"]
[null,"40100774","ASFAR EL HANA"]
[null,"40100775","SYPHAX TRAVEL SERVICES"]
[null,"40100776","PROTEX"]
[null,"40100777","STE DE SERVICE ET DE MONTAGE (SOSEM)"]
[null,"40100778","TAILLEUR DKHIL MOHAMED"]
[null,"40100779","ETS FABRICATION  ACCESSOIRES  RADIATEURS"]
[null,"40100780","MAERSK TUNISIE-SFAX"]
[null,"40100781","METAUX MATERIAUX TECHNIQUES INDUSTRIELS"]
[null,"40100782","NAKI CLIMATISATION"]
[null,"40100783","CHAANBI  LOTFI"]
[null,"40100784","DIAGNOSTIC  MAINTENANCE ROULEMENTS"]
[null,"40100785","HABIB NASFI"]
[null,"40100786","MECANIQUE AUTOS SERVICES"]
[null,"40100787","NOUR GENERALE SERVICES"]
[null,"40100788","MAITRE YOUSSEF KNANI"]
[null,"40100789","LE LECTEUR"]
[null,"40100790","SOCOMI"]
[null,"40100791","STE ETANCHETE MAINTENANCE GLE"]
[null,"40100792","STE ARFA SERVICES"]
[null,"40100793","SCIENTIFIX"]
[null,"40100794","MEHREZ ALI"]
[null,"40100795","ENTREPRISE TOUITI ZAKARIA"]
[null,"40100796","ABDELKADER BEN TAHER GUIZA"]
[null,"40100797","BEN JEMAA MOTORS"]
[null,"40100798","MEHDI BEN ALI JRIDI"]
[null,"40100799","MAGHREB TRANSMISSIONS PLUS"]
[null,"40100800","STE MECANIQUE GENERALE DU SUD"]
[null,"40100801","SEKRAFI  HEDI"]
[null,"40100802","DOCTEUR  NOUREDDINE B. ABDALLAH"]
[null,"40100803","MAITRE MABROUK DAMAK"]
[null,"40100804","STE HORIZON DES MATERIELS AGR-INDU"]
[null,"40100805","MAITRE YOUSSEF BOUABDELLAH"]
[null,"40100806","MAITRE MOHAMED MAALOUL"]
[null,"40100807","MAITRE AGUEL ALI"]
[null,"40100808","MAITRE BOUKHCHINA RAFIK"]
[null,"40100809","MAITRE MRABET AREF"]
[null,"40100810","MAITRE MED TAHA ISSAOUI"]
[null,"40100811","MAITRE SALAH BEN ALI"]
[null,"40100812","BEN LASSOUED MONGI"]
[null,"40100813","LOCAMAT"]
[null,"40100814","STE TUNISIENNE DE LEVAGE"]
[null,"40100815","SOGASED"]
[null,"40100816","STE BOUSSAYENE-KNANI"]
[null,"40100817","INTER SEA MAGHREB"]
[null,"40100818","CONTROL UNION TUNISIE S.A"]
[null,"40100819","ALEX STEWART NORTH AFRICA"]
[null,"40100820","GROUPEMENT GABESIENNE DE DISTRIBUTION"]
[null,"40100821","BUREAU D'ETUDES ET CONSULTATIONS IND. ( BECI )"]
[null,"40100822","STE SCE ETUDE & MAINT INDUSTRIELLE \"SEMI\""]
[null,"40100823","SOCIETE PROPRETE SERVICES (SOPROSER)"]
[null,"40100824","KILANI  CHELBI"]
[null,"40100825","LA FLAMME D'OR-HATEM B MED KRAIEM"]
[null,"40100826","GROUPEMENT MEDECINE TRAVAIL GABES"]
[null,"40100827","FEKILI YOUSSEF AGENCE PEUGEOT"]
[null,"40100828","DOCTEUR HADJ YAHIA BOULBABA"]
[null,"40100829","BOURSE DE TUNIS"]
[null,"40100830","SERVICE D'INGENIERIE  APPLICATIONS TECH."]
[null,"40100831","LABORATOIRE ANALYSE NAJJAR"]
[null,"40100832","CHEBBI CONSULTING & ETUDES"]
[null,"40100833","SOCIETE DE SUD D'EQUIPEMENT GENERALE"]
[null,"40100834","MAINTENANCE SANITAIRE SERVICES"]
[null,"40100835","LA FABRICATION MECANIQUE"]
[null,"40100836","HAFAIEDH ABDALLAH"]
[null,"40100837","STE GHOUMA D'ENTRETIEN-GABES \"SOGEG\""]
[null,"40100838","STE PNEU PLUS"]
[null,"40100839","MRABET BAGHDADI"]
[null,"40100840","TUNISIE CLEARING (EX :STICODEVAM)"]
[null,"40100841","SAM ELEC"]
[null,"40100842","SOS NEJIB"]
[null,"40100843","CAFE SCIENCE DU TRAVAIL"]
[null,"40100844","PRODUIT D'ENTRTIEN MENAGER INDUSTRIEL"]
[null,"40100845","AGENCE MARETH VOYAGE"]
[null,"40100846","COMEX"]
[null,"40100847","AUTO INDUSTRIE (HELMI-EQUIP)"]
[null,"40100848","AGENCE DE PROMOTION DE L'INDUSTRIE"]
[null,"40100849","ISOLMAX"]
[null,"40100850","AL  ATHIR"]
[null,"40100851","MAITRE ABDERRAHIM ZOUHEIR"]
[null,"40100852","TFCS BEN YAHIA"]
[null,"40100853","SAIF SPORT"]
[null,"40100854","SERVICE PERFEC. INDUST. REBOB. ELECT."]
[null,"40100855","ETS FAICAL KRAIEM"]
[null,"40100856","ADLY BELLAGHA"]
[null,"40100857","Q.S.E. EQUIPEMENT & SCES"]
[null,"40100858","MEDALLEL MED HEDI"]
[null,"40100859","TPM AUTO"]
[null,"40100860","MODI SARL"]
[null,"40100861","INDUS-SERV  S.A.R.L"]
[null,"40100862","SASSI KHELIFI"]
[null,"40100863","ETS HATEM ABDELMOULA"]
[null,"40100864","ETS JALEL BEN TEMESSEK"]
[null,"40100865","ECLATS DESIGN"]
[null,"40100866","BRAIN INFORMATIQUE(GABES)"]
[null,"40100867","INTERCHAUX"]
[null,"40100868","ASSOCIATION ARTS & CULTURES OASIS"]
[null,"40100869","ZENITH TECHNOLOGIQUE"]
[null,"40100870","TOUATI  ALI"]
[null,"40100871","STE ORIGINAL MODE (STOCK ZERO)"]
[null,"40100872","COLLOQUE ISG GABES-EEE"]
[null,"40100873","CLEAN AIR TECHNOLOGY"]
[null,"40100874","SOCIETE GENERALE PIECES DE RECHANGE"]
[null,"40100875","IMPRIMERIE EL MEHRI"]
[null,"40100876","STE GENERALE ENTREPRISE BATIMENT"]
[null,"40100877","ETS GHALI ALI"]
[null,"40100878","IBS INFORMATIQUE"]
[null,"40100879","GENERAL EQUIPEMENT ET SERVICES"]
[null,"40100880","BUREAU D'ETUDES DE SUIVI TECHNIQUE SUD"]
[null,"40100881","STE HANEN SERVICES (SO.HA.SER)"]
[null,"40100882","STE YAMMAMA DE TRANSPORT"]
[null,"40100883","ETS TRAVAUX INDUSTRIELS ET PETROLIERS"]
[null,"40100884","SOTECA"]
[null,"40100885","STE DES ETUDES GENIE CIVIL"]
[null,"40100886","GABES EQUIPEMENT INDUSTRIEL"]
[null,"40100887","SOCIETE DE L'AUTOMOBILE ET DU MATERIEL"]
[null,"40100888","CIFORE FORMATION"]
[null,"40100889","SHARING TECHNOLOGIES"]
[null,"40100890","SOTRAMASUD"]
[null,"40100891","STAR PHONE"]
[null,"40100892","STE SERVICES ET TRAVAUX INDUSTRIELS \"STRI\""]
[null,"40100893","SSIH-WATER"]
[null,"40100894","SOQUIBAT"]
[null,"40100895","PROSID"]
[null,"40100896","TRANSIDER"]
[null,"40100897","VIVO ENERGY (EX :SHELL TUNISIE)"]
[null,"40100898","STE TURKI IMPORT EXPORT"]
[null,"40100899","KHALIFA BOUAZIZ"]
[null,"40100900","SUD PIECES D'ENGINS"]
[null,"40100901","ARTS DIVERS"]
[null,"40100902","STE DE REFENDAGE DE LA TOLE"]
[null,"40100903","BIOGENE"]
[null,"40100904","SWAGELOK ARBOR TUNISIE"]
[null,"40100905","STE AGENCES TRANSIT TRANSPORT SCES"]
[null,"40100906","ELGNAOUI BOULBABA"]
[null,"40100907","PROMOPUB"]
[null,"40100908","STE GABESIENNE DE VERRE"]
[null,"40100909","AHMED SALLAMI"]
[null,"40100910","ETS BEN SEDRINE NABIL"]
[null,"40100911","INDUSTRIE DE TRANSFORMATION DES METAUX"]
[null,"40100912","SOUAFI MOHAMED TRANSPORTEUR"]
[null,"40100913","JEUNE CHAMBRE INDUSTRIE GABES"]
[null,"40100914","MOHAMED ABID"]
[null,"40100915","SEVIL"]
[null,"40100916","MODA VINCI"]
[null,"40100917","AIR FRANCE"]
[null,"40100918","SOCIETE DE SERVICE AFRICAINE (SO.S.A)"]
[null,"40100919","SYNERGICS"]
[null,"40100920","SBEIHI ZOUHEIR (CHAUSSURE LA FAMILLE)"]
[null,"40100921","UNION REGIONALE DES AVEUGLES DE GABES"]
[null,"40100922","HABIB GUIZA"]
[null,"40100923","EL JANOUB VOYAGES"]
[null,"40100924","TREN D'OLOT TUNISIE"]
[null,"40100925","ETS THABET"]
[null,"40100926","ISOLMAX INDUSTRIE GABES"]
[null,"40100927","STE BEN AMARA INDUSTRIE"]
[null,"40100928","STE MAINT. RENOUVEL. INDUSTRIEL (SOMRI)"]
[null,"40100929","CABINET SAMI MOALLA"]
[null,"40100930","MAITRE ABDELHEDI BOUSSAADA"]
[null,"40100931","SHOES CENTER"]
[null,"40100932","AGENCE VOYAGE SARAH REISEN"]
[null,"40100933","SOREGARDE"]
[null,"40100934","MAISON BUREAUTIQUE ET INFORMATIQUE"]
[null,"40100935","GREEN INTERNATIONAL RENT A CAR"]
[null,"40100936","EN KHLIFA  HATEM"]
[null,"40100937","MOHAMED BEN FRAJ"]
[null,"40100938","FIRST INFORMATIQUE"]
[null,"40100939","STE ENNAKL"]
[null,"40100940","CHAUSSURE SGHAIER (IMED GNOUNOU)"]
[null,"40100941","STE DES TRAVAUX ELECTROMECANIQUES"]
[null,"40100942","SMAOUI AUTO SERVICES"]
[null,"40100943","ECOLE NATIONALE D'INGENIEURS DE GABES (USCR)"]
[null,"40100944","STE AFRICAINE DE PRESSE (SAPCOM)"]
[null,"40100945","SALHI MONDHER TRADING"]
[null,"40100946","TECHNOPREST"]
[null,"40100947","DELTAFLEX"]
[null,"40100948","SUD METAL ALUMINIUM"]
[null,"40100949","Zerilli .E.T.I PLAS"]
[null,"40100950","LA MAISON D'EQUIPEMENTS INDUSTRIEL ET DE SOUDAGE"]
[null,"40100951","STE RATEL DE SERVICE GENERAL"]
[null,"40100952","STE NOUVELLE CONST.INDUST & ISOLATION"]
[null,"40100953","TUNISAIR"]
[null,"40100954","SOCIETE LAHRECH SERVICES"]
[null,"40100955","AYMEN BEN ZID (ATELIER P.U.M.G)"]
[null,"40100956","LES MINERAUX BROYES DU SUD"]
[null,"40100957","AFRIC SOIL"]
[null,"40100958","ETS WAEL ZRIGUI D'ELECTRICITE"]
[null,"40100959","STE TUNISIENNE D'INSPECTION & ESSAIS"]
[null,"40100960","MEDYAMA-SOFT"]
[null,"40100961","ELYSSE HYPER DISTRIBUTION (CARREFOUR)"]
[null,"40100962","INTERNATIONAL LABORATORY SERVICES"]
[null,"40100963","MOURAD NAILI (TRANSPORTEUR)"]
[null,"40100964","SOCIETE MAGHREB SOUDURE"]
[null,"40100965","DHAFER AMARA"]
[null,"40100966","HAMDI ABDERRAZAG"]
[null,"40100967","STE TRANSPORT MARCHANDISES THYNA"]
[null,"40100968","ETUDES INGENIERIE & CONSEIL"]
[null,"40100969","S.I.S"]
[null,"40100970","HOTEL LAICO"]
[null,"40100971","MAITRE MOUNIR B. ABDALLAH CHINNAOUI"]
[null,"40100972","MAITRE NOOMEN RAHMANI"]
[null,"40100973","SOPROGET"]
[null,"40100974","Sté SERVICES BECHA INDUSTRIE"]
[null,"40100975","Sté NAJARI DE SERVICES INDUSTRIELLES"]
[null,"40100976","Sté DE MEDITERRANEE DE MAINTENANCE"]
[null,"40100977","REHAIMA FARAH"]
[null,"40100978","MAGASIN HABIB CHALBI"]
[null,"40100979","CHABBAR ADEL"]
[null,"40100980","STE G.D'INFORMATIQUE ET DE M. DE SUD \"GIMS\""]
[null,"40100981","SOCIETE TOUS TRAVAUX INDUSTRIELS"]
[null,"40100982","COMPTOIR OTHMANI"]
[null,"40100983","STE ESPACE BATIMENT"]
[null,"40100984","QUINCAILLERIE CENTRALE"]
[null,"40100985","BIOTIME"]
[null,"40100986","GHAMAGUI  FETHI"]
[null,"40100987","MAITRE ALI BELHASSEN"]
[null,"40100988","TABA ABBES"]
[null,"40100989","CONSULTING MEMBERS GROUP (CMG)"]
[null,"40100990","ONE-TEL"]
[null,"40100991","ATELIER GHARIANI ABDELHAFIDH"]
[null,"40100992","QUINCAILLERIE BOUANANIA"]
[null,"40100993","ZOUHEIR MANSOUR"]
[null,"40100994","ELECTROMECANIC ENGINEERING COMPANY"]
[null,"40100995","SOCIETE RCI"]
[null,"40100996","STE BUREAUTIQUE & MAINTENANCE"]
[null,"40100997","HAKIM TECHNOLOGIE"]
[null,"40100998","RAYAN MEDICAL SERVICE"]
[null,"40100999","ENT HATEM ELLEUCH"]
[null,"40101000","STE ZINA DE MAINTENANCE IND"]
[null,"40101001","AGENCE NATIONAL GESTION DECHETS \"ANGED\""]
[null,"40101002","LA PERGOLA"]
[null,"40101003","KSONTINI LASSAD"]
[null,"40101004","LE MOTEUR"]
[null,"40101005","TECHNIQUE INSPECTION & CONTROLE SA"]
[null,"40101006","RATEL RENT A CAR"]
[null,"40101007","SOCIETE NATIONALE DES CHEMINS DE FER TUNISIENS"]
[null,"40101008","GROUPEMENT MANUTENTIONNAIRES SFAX SA"]
[null,"40101009","AMORRI JELEL"]
[null,"40101010","LINDE GAS TUNISIE SA"]
[null,"40101011","CHAOUCH MONCEF"]
[null,"40101012","AMILCAR SHIPPING AGENCY"]
[null,"40101013","STE ZINA  TRAVAUX  &  SERVICES"]
[null,"40101014","KAIS EDDALI"]
[null,"40101015","ECONOMIC AUTO"]
[null,"40101016","KRIDIS RENT A CAR"]
[null,"40101017","BELHACEM BEN MAHMOUD GUIZANI"]
[null,"40101018","NACEUR BEN ROBAI CHNITER"]
[null,"40101019","MONJI ABDELKADER"]
[null,"40101020","SOCOMEM"]
[null,"40101021","SIEMENS SA"]
[null,"40101022","CONSTRUCTION-EQUIPEMENT"]
[null,"40101023","SIGMA CONSULTING"]
[null,"40101024","VOILERIES TUNISIENNES"]
[null,"40101025","STE MAGHARIBEYA MAINT & INDUST"]
[null,"40101026","M'BARKI ADEL"]
[null,"40101027","STE MOHAMED GDOURA ET CIES"]
[null,"40101028","GREEN LAB"]
[null,"40101029","MAITRE FERJANI B MAHMOUD JABRI"]
[null,"40101030","BEST INGINEERING"]
[null,"40101031","LE PLASTIQUE IDEAL"]
[null,"40101032","BIOLOMEDIC"]
[null,"40101033","GENERAL DES EAUX"]
[null,"40101034","SOCIETE MRABET SERVICES"]
[null,"40101035","GENERALE INDUSTRIELLE & D'INGENIERIE"]
[null,"40101036","SOCIETE SAMIR PVC"]
[null,"40101037","SOCIETE NECESSAIRE INDUSTRIE"]
[null,"40101038","BEN ZID FEHMI-MENUISERIE ALLUMINIUM"]
[null,"40101039","STE GABES TECH & MAINT GENERALE"]
[null,"40101040","CTP MAGHREB"]
[null,"40101041","Ets CHABIR EZZEDDINE D'ELECTRICITE"]
[null,"40101042","SOUEI MOHAMED (EX : SERVICES MODERNES)"]
[null,"40101043","SUD EQUIPEMENT GENERAL"]
[null,"40101044","MOHAMED TAHAR MEDDEB"]
[null,"40101045","GLOBAL BUSINESS & SERVICE COMPANY"]
[null,"40101046","OMRANI MAINTENANCE INDUSTRIELLE"]
[null,"40101047","DISCOUNT INFO"]
[null,"40101048","BUREAU D'ETUDE NADER ZITOUNI"]
[null,"40101049","STE GOLF SERVICES PORTUAIRES"]
[null,"40101050","SOCIETE CARTHAGE SERVICES"]
[null,"40101051","ATELIER BEN MAHMOUD TOURNAGE-FRAISAGE"]
[null,"40101052","GROUPE RAJAH SERVICES"]
[null,"40101053","ZEHRI LOCATION ET MAINTENANCE"]
[null,"40101054","SOUDANI RIDHA"]
[null,"40101055","ALI CHELBI CONSULTING"]
[null,"40101056","STE AL AMEN SERVICES (SOAMES)"]
[null,"40101057","SOCIETE YOSRI TRAVAUX"]
[null,"40101058","SEA ELECTRONICS"]
[null,"40101059","MAITRE RACHID CHIBANI"]
[null,"40101060","EQUIPEMENT GENERAL DE BATIMENTS (EGB)"]
[null,"40101061","STE MAINTENANCE&TRAVAUX IND (SOMATI)"]
[null,"40101062","MOHAMED KHLIFA BEN CHARRADA"]
[null,"40101063","SRAIRI BUREATIQUE ET INFORMATIQUE"]
[null,"40101064","SOCIETE NOUR NAKHIL"]
[null,"40101065","INSTRUMENTATION & CONTROLS (IMC)"]
[null,"40101066","PALM MARKET"]
[null,"40101067","GABES FLEXIBLE (EL BADRI HACHMI)"]
[null,"40101068","ART DE LA MENUISERIE ALUMINIUM (ARMALU)"]
[null,"40101069","CHAMTOURI KHEMAIES"]
[null,"40101070","PROMOVACANCES"]
[null,"40101071","OASIS CONTROLE SA"]
[null,"40101072","PREVENTION PLUS FORMATION"]
[null,"40101073","BUREAU D'ESSAIS CONTROLES D'ANALYSES"]
[null,"40101074","INDUSTRY & AUTOMATION SERVICES"]
[null,"40101075","LINGUA-HOUSE"]
[null,"40101076","MOUNA VOYAGES"]
[null,"40101077","GLOBAL FRET"]
[null,"40101078","KARS"]
[null,"40101079","KILANI CHAMTOURI"]
[null,"40101080","TOLERIE FERJENI OUANENE"]
[null,"40101081","ART MAINTENANCE & SERVICES INDUSTRIELS"]
[null,"40101082","STE CHIMIQUE DE TUNISIE - SECTION GABES"]
[null,"40101083","COMPTOIR TUNISIEN TRANSP.  MARCHANDISE"]
[null,"40101084","JHIDRI MED.B.REJEB"]
[null,"40101085","MENA CAPITAL PARTNERS (MCP)"]
[null,"40101086","S.P.E SUD (STE LE PRODUIT D'ENTRETIEN DU SUD)"]
[null,"40101087","STE GENERALE DE COMMERCE EL HADJI"]
[null,"40101088","SOCIETE SELECT EQUIPEMENT-S.S.E"]
[null,"40101089","SOCIETE COMPTOIR DE LA CHIMIE"]
[null,"40101090","MULTILABO"]
[null,"40101091","STTAT SFAX"]
[null,"40101092","BUSINESS MANAGEMENT CONSULTING (BMC)"]
[null,"40101093","SIVEP"]
[null,"40101094","BOUTIQUE EZOUHOUR"]
[null,"40101095","NOVA TOURS GABES"]
[null,"40101096","STE ARABE TRAVAUX & REPRESENTATIONS"]
[null,"40101097","STE AMEUR DE TRANSPORT"]
[null,"40101098","SADOK KRAIEM"]
[null,"40101099","GUADRI ABDERRAHMAN"]
[null,"40101100","NEJIB ASKRI"]
[null,"40101101","IMC METROLOGIE"]
[null,"40101102","ALBARAKA"]
[null,"40101103","HOTEL DIPLOMAT"]
[null,"40101104","EURO ASSISTANCES SERVICES"]
[null,"40101105","SODEXO"]
[null,"40101106","PARTNERS"]
[null,"40101107","ROUHIA RADHOUANI"]
[null,"40101108","PHARMACIE HADJJAJ MOHAMED TAHAR"]
[null,"40101109","DARDOURI AUTO SERVICE"]
[null,"40101110","ESSID SERVICE"]
[null,"40101111","STE INTER. CONTROLE TECH & EXPERTISE"]
[null,"40101112","POMARAF"]
[null,"40101113","NORD INDUSTRIE"]
[null,"40101114","GENERALE DISTRIBUTION"]
[null,"40101115","MOSTAPHA HENCHIRI"]
[null,"40101116","TECHNO SCIENCES"]
[null,"40101117","COMPETENCE EN FORMATION & MANAGEMENT"]
[null,"40101118","MANSOUR RACHID"]
[null,"40101119","YAKOUB (CONFECTION CLE)"]
[null,"40101120","BOUTIQUE CHARME \"SABRI BOUZWITA\""]
[null,"40101121","SEFAC"]
[null,"40101122","QUINCAILLERIE GENERALE FARHAT FETHI"]
[null,"40101123","INDUSTRIAL ENGINEERING TECHNOLOGIES (IET)"]
[null,"40101124","TERRASOL"]
[null,"40101125","SOCIETE MAINTENANCE INDUSTRIELLE"]
[null,"40101126","STE TUN ASCENSEURS SCHINDLER (STAS TUNIS)"]
[null,"40101127","CLIMATECH"]
[null,"40101128","ATEF ABDELJAWED"]
[null,"40101129","CONFORT TELMOUDI"]
[null,"40101130","SECURITE TELECOM SERVICES"]
[null,"40101131","RESTAURANT SAMARKAND"]
[null,"40101132","SOCIETE AMINE"]
[null,"40101133","HYDROSOL FONDATIONS"]
[null,"40101134","AIDA RENT A CAR"]
[null,"40101135","TRIPOLI CONSULTING"]
[null,"40101136","MABROUKA YAHIYA"]
[null,"40101137","BOUTIQUE ZARKAA EL YAMAMA (LAGHA MOUNA)"]
[null,"40101138","FONTEC"]
[null,"40101139","MANUFACTURE DE PANNEAUX BOIS DU SUD"]
[null,"40101140","SOCIETE GABES METAL"]
[null,"40101141","LIBRAIRIE CHAGRA"]
[null,"40101142","JESR EL MAHARAT"]
[null,"40101143","NET FORMATION"]
[null,"40101144","ALI BEN MUSTAPHA THABET"]
[null,"40101145","SOCIETE TUNISIENNE TRANSPORT EN VRAC"]
[null,"40101146","MOHAMED SALAH AYARI"]
[null,"40101147","LABORATOIRE TUN ETALONNAGE & ESSAIS"]
[null,"40101148","TOP NET"]
[null,"40101149","ETS MABROUK CONST.MATALLIQUE"]
[null,"40101150","SOCIETE BOUZGUENDA FRERES"]
[null,"40101151","STE GENERALE INFORMATIQUE"]
[null,"40101152","LA PUBLICITE"]
[null,"40101153","MEDITERRANEENE COMM. TRAN.&CONSIGNATION"]
[null,"40101154","STEG INTERNATIONAL SERVICES"]
[null,"40101155","FORTEX"]
[null,"40101156","STE TOURNAGE & SERVICES MECANIQUE"]
[null,"40101157","STE AGENCES TECHNIQUE TRANSIT SERVICES"]
[null,"40101158","MAITRE CHERFI ABDESSATAR"]
[null,"40101159","COTEX"]
[null,"40101160","OOREDOO (EX TUNISIANA)"]
[null,"40101161","HOTEL MOURAD"]
[null,"40101162","MULTI LOGISTIC SERVICES"]
[null,"40101163","GENERAL ALFA"]
[null,"40101164","RBS"]
[null,"40101165","MANAGEMENT ASSISTANCE FORMATION"]
[null,"40101166","MEZHOUDI ENGINS"]
[null,"40101167","KARIM BOUZOUITA"]
[null,"40101168","MOKHTAR BOUASSIDA"]
[null,"40101169","STE COMMERCIALE D'HABILLEMENT (CERTO)"]
[null,"40101170","MEDITERRANEE  SCES & QUALITE INDUST"]
[null,"40101171","GENERALE ELECTRICITE & SCE TECHNOLOGIQUES"]
[null,"40101172","SOGEMA (STE GUIZA DES EQUIP)"]
[null,"40101173","STE BEN HMIDA POLY SERVICES"]
[null,"40101174","SERVICE GENERAL ELECTRIQUE (OUNIS ZOUHEIR)"]
[null,"40101175","DOCTEUR HAMZAOUI DHAOU"]
[null,"40101176","RESTAURANT EL HAMD (WAJDI JMAII)"]
[null,"40101177","STE TUNIS.ACCONAGE MANUT SFAX"]
[null,"40101178","SOHATRAM"]
[null,"40101179","SERVITOP"]
[null,"40101180","COMPTOIR DU CAOUTCHOUC ET DE L'EQUIPEMENT INDUSTRIEL"]
[null,"40101181","INTERIEURS"]
[null,"40101182","SOCIETE COMMERCIALE ENNEJAH"]
[null,"40101183","CAP VALEUR"]
[null,"40101184","BOUTIQUE L'HOMME"]
[null,"40101185","STE VETEMENTS PROFESSIONELS"]
[null,"40101186","D.E.F.I.BAT"]
[null,"40101187","STE EXPLOITATION & GESTION OUVRAGES & RESEAUX"]
[null,"40101188","PROFESSIONAL SAFETY EQUIPEMENT"]
[null,"40101189","MAITRE MERZOUGUI MOHAMED SALAH"]
[null,"40101190","EBS INDUSTRIES"]
[null,"40101191","CHIMITEX"]
[null,"40101192","HYDRO-WATER"]
[null,"40101193","SOCIETE MC TEXTILES"]
[null,"40101194","MAITRE HOUCINE ABDENNEBI"]
[null,"40101195","COMPTO INDUSTRIELS ELECTRIQUES"]
[null,"40101196","JM MECHATRONICS"]
[null,"40101197","KAABIA BOUABID"]
[null,"40101198","PROGRE'SS FORMATION"]
[null,"40101199","CONTAINER MEDITERRANEAN AGENCY"]
[null,"40101200","Sté AL AMANA DE LOCATION DE VOITURES"]
[null,"40101201","GENERAL RADIATORS"]
[null,"40101202","SOCIETE BIO-SOURCE"]
[null,"40101203","INSTITUT  INTER. DROIT MARITIME TRANSP"]
[null,"40101204","SERVICOM"]
[null,"40101205","NOUVELCAR"]
[null,"40101206","LATIFA BECHIKH (RESTAURANT EL JOMHOURIYA)"]
[null,"40101207","STE LEAN PARTNERS"]
[null,"40101208","IMAC AUDIT & CONSEIL"]
[null,"40101209","MENUISIERS ALUMINIUM (KAMAL HNAIEN)"]
[null,"40101210","STE LOTFI KACEM & CIE (AGENCE OFFICE.ENNAKL)"]
[null,"40101211","FLASH PRINT"]
[null,"40101212","ASS.TUNISIAN CHEMICAL ENGINEERING SOCIETY"]
[null,"40101213","SIXT MOMENTUM"]
[null,"40101214","STE TOURISTIQUE RAHMA"]
[null,"40101215","WATER TECH"]
[null,"40101216","LABOMES"]
[null,"40101217","EXPRESS CAR"]
[null,"40101218","HOPITAL MILITAIRE"]
[null,"40101219","GUEBIBIA ATEF"]
[null,"40101220","MAITRE SABRA LAJMI EP ISSAOUI"]
[null,"40101221","MOHAMED LAMINE"]
[null,"40101222","STE KHOULOUD DE PIECES DE RECHANGE"]
[null,"40101223","STE TUNISIENNE EQUIP COLLECTIF & MANAGER (STECOM)"]
[null,"40101224","PHARMACIE HAJJEJ MED GHOFRANE"]
[null,"40101225","TRABELSI Med TAHEUR (Boutique ENZO)"]
[null,"40101226","CHAFITEX"]
[null,"40101227","STE DES PRODUITS ET DU MATERIEL INDUSTRIEL"]
[null,"40101228","REJAIBA MAINTENANCE INDUSTRIELLE"]
[null,"40101229","SUD PESAGE & SERVICES"]
[null,"40101230","Ali Hadj Houcine Bardi"]
[null,"40101231","SOCIETE HELP SERVICE"]
[null,"40101232","SOCIETE MERI"]
[null,"40101233","STE TRAV. MAINTENANCE ET SERVICES (SOTRAMS)"]
[null,"40101234","DKAR MABROUK B MOHAMED"]
[null,"40101235","STE THERMECO"]
[null,"40101236","SAID MAKNI"]
[null,"40101237","GENERAL METAL"]
[null,"40101238","BOUEBDELLAH TRAVAUX INDUSTRIEL"]
[null,"40101239","BOUKHCHINA MOUNIRA"]
[null,"40101240","AQUATUN"]
[null,"40101241","OMNI CONSEILS"]
[null,"40101242","BOUTIQUE NARJES"]
[null,"40101243","KAHLOUL ADEL"]

{"sheet":"Saisie charges","index":1,"n_rows":20,"n_cols":9,"rows_kept":20,"merged":[[0,2,0,8]]}
[null,null,"LA SAISIE DES CHARGES"]
["type","num vte","Date","Prestation","Fournisseur","Mnt Estimé","Mnt Réel","N° Fre","Cpte Cptble"]
[]
["AlF3","1/F/14","12/06/14","Acconage","GROUPEMENT DES MANUT.DE GABES (GMGA)",{"v":5467.564,"d":"5,467.564"},{"v":0,"d":"0.000"},null,62420172]
["AlF3","1/F/14","12/06/14","Location Camion","LOCAMAT",{"v":2300,"d":"2,300.000"},{"v":2458.987,"d":"2,458.987"},54,62420172]
["AlF3","1/F/14","12/06/14","Surv. Et Echantillonage","SGS",{"v":300,"d":"300.000"},{"v":0,"d":"0.000"},null,62200182]
["AlF3","1/F/14","12/06/14","Main d'œuvre extérieure","GHEDAMSI TRAVEAUX SCES",{"v":2000,"d":"2,000.000"},{"v":2200,"d":"2,200.000"},14,62420172]
["AlF3","1/F/14","12/06/14","Location Chariots, trax ou bène","LOCAMAT",{"v":2360,"d":"2,360.000"},{"v":0,"d":"0.000"},null,62420172]
["AlF3","1/F/14","12/06/14","Certificat d'origine","CHAMBRE TUNISO-FRANCAISE",{"v":230,"d":"230.000"},{"v":0,"d":"0.000"},null,62420172]
["AlF3","1/F/14","12/06/14","Acconage","STE TUNIS.ACCONAGE MANUT",{"v":500,"d":"500.000"},{"v":550.65,"d":"550.650"},4,62420172]
["AlF3","02/F/15","12/08/14","Acconage","STE TUNIS.ACCONAGE MANUT",{"v":7890.987,"d":"7,890.987"},{"v":0,"d":"0.000"},null,62420172]
["AlF3","02/F/15","12/08/14","Location Camion","LOCAMAT",{"v":2000,"d":"2,000.000"},{"v":2000.675,"d":"2,000.675"},43,62420172]
["AlF3","02/F/15","12/08/14","Certificat d'origine","CHAMBRE TUNISO-FRANCAISE",{"v":500,"d":"500.000"},{"v":0,"d":"0.000"},null,62420172]
["Spath Fluor","g","12/05/14","Acconage","GROUPEMENT DES MANUT.DE GABES (GMGA)",{"v":45987.098,"d":"45,987.098"},{"v":0,"d":"0.000"},null,60450271]
["Spath Fluor","g","12/05/14","Surv. Et Echantillonage","LOCAMAT",{"v":678,"d":"678.000"},{"v":765,"d":"765.000"},45,62200382]
["Alumine Hydratée","67","30/11/14","Acconage","GROUPEMENT DES MANUT.DE GABES (GMGA)",{"v":56798.876,"d":"56,798.876"},{"v":0,"d":"0.000"},null,60450371]
["AlF3","12/Alf3/14","12/05/14","Acconage","STEG GABES",{"v":7526.25,"d":"7,526.250"},{"v":8625.236,"d":"8,625.236"},15,62420172]
["Anhydrite","263/15/14","15/12/14","Acconage","ENT KERRIT M'HAMED",{"v":5640.263,"d":"5,640.263"},{"v":0,"d":"0.000"},null,62420772]
["Anhydrite","263/15/14","15/12/14","Location Camion","LOCAMAT",{"v":12000,"d":"12,000.000"},{"v":13659.737,"d":"13,659.737"},12,62420772]
["Fluorure d'Aluminium","15/12","15/11/14","Acconage","ONAS",{"v":6500,"d":"6,500.000"},{"v":7000,"d":"7,000.000"},5,62420172]

{"sheet":"Spath Fluor","index":2,"n_rows":6,"n_cols":8,"rows_kept":6,"merged":[[0,0,3,2],[0,3,0,5],[0,6,0,7],[1,3,1,5],[1,6,1,7],[2,3,2,5],[2,6,2,7],[3,3,3,5],[3,6,3,7]]}
["Spath Fluor",null,null,"Charges Totales :",null,null,{"$f":"SUM(F6:F20)","v":{"v":46752.098,"d":"46,752.098"}}]
[{"$nulls":3},"Quantité totale reçue :",null,null,{"$f":"SUM(E6:E20)","v":{"v":7689.876,"d":"7,689.876"}}]
[{"$nulls":3},"Frais moyenne / tonne :",null,null,{"$f":"IF(G2<>0,G1/G2,0)","v":{"v":6.079694653073729,"d":"6.080"}}]
[{"$nulls":3},"Ecart total / Budget :",null,null,{"$f":"SUM(H6:H20)","v":{"v":-30146.662,"d":"-30,146.662"}}]
["Date","Navire","Ref Achat","Origine","Quantité","Total Charges","Frais / Tonne","Ecart / Budget"]
["12/05/14","hhh","g","mex",{"v":7689.876,"d":"7,689.876"},{"v":46752.098,"d":"46,752.098"},{"v":6.08,"d":"6.080"},{"v":-30146.662,"d":"-30,146.662"}]

{"sheet":"Alumine Hydratée","index":3,"n_rows":6,"n_cols":8,"rows_kept":6,"merged":[[0,0,3,2],[0,3,0,5],[0,6,0,7],[1,3,1,5],[1,6,1,7],[2,3,2,5],[2,6,2,7],[3,3,3,5],[3,6,3,7]]}
["Alumine Hydratée",null,null,"Charges Totales :",null,null,{"$f":"SUM(F6:F21)","v":{"v":56798.876,"d":"56,798.876"}}]
[{"$nulls":3},"Quantité totale reçue :",null,null,{"$f":"SUM(E6:E21)","v":{"v":768,"d":"768.000"}}]
[{"$nulls":3},"Frais moyenne / tonne :",null,null,{"$f":"IF(G2<>0,G1/G2,0)","v":{"v":73.95686979166666,"d":"73.957"}}]
[{"$nulls":3},"Ecart total / Budget :",null,null,{"$f":"SUM(H6:H21)","v":{"v":49118.876,"d":"49,118.876"}}]
["Date","Navire","Ref Achat","Origine","Quantité","Total Charges","Frais / Tonne","Ecart / Budget"]
["30/11/14","GH","67","ITALIA",{"v":768,"d":"768.000"},{"v":56798.876,"d":"56,798.876"},73.957,{"v":49118.876,"d":"49,118.876"}]

{"sheet":"Alumine calcinée","index":4,"n_rows":5,"n_cols":8,"rows_kept":5,"merged":[[0,0,3,2],[0,3,0,5],[0,6,0,7],[1,3,1,5],[1,6,1,7],[2,3,2,5],[2,6,2,7],[3,3,3,5],[3,6,3,7]]}
["Alumine Calcinée",null,null,"Charges Totales :",null,null,{"$f":"SUM(F6:F21)","v":{"v":0,"d":"0.000"}}]
[{"$nulls":3},"Quantité totale reçue :",null,null,{"$f":"SUM(E6:E21)","v":{"v":0,"d":"0.000"}}]
[{"$nulls":3},"Frais moyenne / tonne :",null,null,{"$f":"IF(G2<>0,G1/G2,0)","v":{"v":0,"d":"0.000"}}]
[{"$nulls":3},"Ecart total / Budget :",null,null,{"$f":"SUM(H6:H21)","v":{"v":0,"d":"0.000"}}]
["Date","Navire","Ref Achat","Origine","Quantité","Total Charges","Frais / Tonne","Ecart / Budget"]

{"sheet":"Soufre","index":5,"n_rows":5,"n_cols":8,"rows_kept":5,"merged":[[0,0,3,2],[0,3,0,5],[0,6,0,7],[1,3,1,5],[1,6,1,7],[2,3,2,5],[2,6,2,7],[3,3,3,5],[3,6,3,7]]}
["Soufre",null,null,"Charges Totales :",null,null,{"$f":"SUM(F6:F21)","v":{"v":0,"d":"0.000"}}]
[{"$nulls":3},"Quantité totale reçue :",null,null,{"$f":"SUM(E6:E21)","v":{"v":0,"d":"0.000"}}]
[{"$nulls":3},"Frais moyenne / tonne :",null,null,{"$f":"IF(G2<>0,G1/G2,0)","v":{"v":0,"d":"0.000"}}]
[{"$nulls":3},"Ecart total / Budget :",null,null,{"$f":"SUM(H6:H21)","v":{"v":0,"d":"0.000"}}]
["Date","Navire","Ref Achat","Origine","Quantité","Total Charges","Frais / Tonne","Ecart / Budget"]

{"sheet":"Anhydrite","index":6,"n_rows":6,"n_cols":8,"rows_kept":6,"merged":[[0,0,3,2],[0,3,0,5],[0,6,0,7],[1,3,1,5],[1,6,1,7],[2,3,2,5],[2,6,2,7],[3,3,3,5],[3,6,3,7]]}
["Anhydrite             [à l'export]",null,null,"Charges Totales :",null,null,{"$f":"SUM(F6:F21)","v":{"v":19300,"d":"19,300.000"}}]
[{"$nulls":3},"Quantité totale reçue :",null,null,{"$f":"SUM(E6:E21)","v":{"v":5000,"d":"5,000.000"}}]
[{"$nulls":3},"Frais moyenne / tonne :",null,null,{"$f":"IF(G2<>0,G1/G2,0)","v":{"v":3.86,"d":"3.860"}}]
[{"$nulls":3},"Ecart total / Budget :",null,null,{"$f":"SUM(H6:H21)","v":{"v":-30700,"d":"-30,700.000"}}]
["Date","Navire","Ref Achat","Origine","Quantité","Total Charges","Frais / Tonne","Ecart / Budget"]
["15/12/14","Naviros","263/15/14","CBA",{"v":5000,"d":"5,000.000"},{"v":19300,"d":"19,300.000"},{"v":3.86,"d":"3.860"},{"v":-30700,"d":"-30,700.000"}]

{"sheet":"AlF3","index":7,"n_rows":8,"n_cols":8,"rows_kept":8,"merged":[[0,0,3,2],[0,3,0,5],[0,6,0,7],[1,3,1,5],[1,6,1,7],[2,3,2,5],[2,6,2,7],[3,3,3,5],[3,6,3,7]]}
["Fluorure d'Aluminium",null,null,"Charges Totales :",null,null,{"$f":"SUM(F6:F21)","v":{"v":32584.099,"d":"32,584.099"}}]
[{"$nulls":3},"Quantité totale reçue :",null,null,{"$f":"SUM(E6:E21)","v":{"v":3200,"d":"3,200.000"}}]
[{"$nulls":3},"Frais moyenne / tonne :",null,null,{"$f":"IF(G2<>0,G1/G2,0)","v":{"v":10.1825309375,"d":"10.183"}}]
[{"$nulls":3},"Ecart total / Budget :",null,null,{"$f":"SUM(H6:H21)","v":{"v":584.0990000000002,"d":"584.099"}}]
["Date","Navire","Ref Achat","Client","Quantité","Total Charges","Frais / Tonne","Ecart / Budget"]
["12/06/14","NV MAZIN ARAB","1/F/14","CBA",{"v":1200,"d":"1,200.000"},{"v":13567.201,"d":"13,567.201"},11.306,{"v":1567.201,"d":"1,567.201"}]
["12/08/14","NV ALAB","02/F/15","KSA",{"v":500,"d":"500.000"},{"v":10391.662,"d":"10,391.662"},20.783,{"v":5391.662,"d":"5,391.662"}]
["12/05/14","NV MAZIN","12/Alf3/14","CBA",{"v":1500,"d":"1,500.000"},{"v":8625.236,"d":"8,625.236"},{"v":5.75,"d":"5.750"},{"v":-6374.764,"d":"-6,374.764"}]

{"sheet":"compte comptable","index":8,"n_rows":12,"n_cols":7,"rows_kept":12}
["Prestation/matière","Spath Fluor","Alumine Hydratée","Alumine calcinée","Soufre","Fluorure d'Aluminium","Anhydrite"]
["Acconage",60450271,60450371,60450071,60457071,62420172,62420772]
["Nettoyage Quai",60460271,60460371,60460071,60467171,62420172,62420772]
["Location Camion",60440271,60440371,60440071,60447071,62420172,62420772]
["Location Chariots, trax ou bène",60430271,60430371,60430071,60437071,62420172,62420772]
["Surv. Et Echantillonage",62200382,62200282,62200782,62207082,62200182,62200982]
["Droit de Port et Gardiennage",60450271,60450371,60450071,60457071,62420172,62420772]
["Main d'œuvre extérieure",60460271,60460371,60460071,60467171,62420172,62420772]
["Mouvement Navire",60460271,60460371,60460071,60467171,62420172,62420772]
["Tole ou planche pour arrimage",60460271,60460371,60460071,60467171,62420172,62420772]
["Certificat d'origine",60460271,60460371,60460071,60467171,62420172,62420772]
["Assistance & Formalités",60460271,60460371,60460071,60467171,62420172,62420772]